[Event "American Cup Blitz 2024"]
[Site "Saint Louis"]
[Date "2024.03.21"]
[Round "7.7"]
[White "Le, Quang Liem"]
[Black "Raja Harshit"]
[Result "1-0"]
[ECO "D40"]
[WhiteElo "2731"]
[BlackElo "2458"]
[Annotator "TA"]
[PlyCount "93"]
[EventDate "2024.03.21"]
[EventType "swiss"]
[EventCountry "USA"]
[SourceTitle "playchess.com"]
[Source "ChessBase"]
[SourceQuality "1"]
[TimeControl "180+2"]

{[%evp 10,93,-2,6,24,31,34,31,30,19,41,39,43,57,63,-49,-45,-40,-31,-43,-35,-46,-35,-37,-19,-25,-10,-10,-4,-14,0,-16,-15,-5,0,-79,-17,-14,0,-38,-29,-34,0,0,0,-10,0,0,0,0,6,0,10,-12,-13,-16,66,-8,-8,-7,-9,-246,-100,-266,-142,-176,0,-179,-29,-30,92,99,391,383,636,365,343,217,212,216,925,897,920,891,864,826]} 1. Nf3 {[%emt 0:00:01]} Nf6 {[%emt 0:00:01]} 2. c4 {[%emt 0:00:01]} e6 {[%emt 0:00:01]} 3. Nc3 {[%emt 0:00:01]} d5 {[%emt 0:00:01]} 4. e3 {[%emt 0:00:01]} c5 {[%emt 0:00:01]} 5. d4 {[%emt 0:00:05]} Nc6 {[%emt 0:00:04]} 6. a3 {[%emt 0:00:01]} h6 {[%emt 0:00:02]} 7. dxc5 {[%emt 0:00:08]} Bxc5 {[%emt 0:00:01]} 8. b4 {[%emt 0:00:01]} Be7 {[%emt 0:00:07] Weiß steht etwas besser.} 9. Bb2 {[%emt 0:00:05]} O-O {[%emt 0:00:03]} 10. Qc2 {[%emt 0:00:09]} dxc4 {[%emt 0:00:17]} 11. Bxc4 {[%emt 0:00:03]} a6 {[%emt 0:00:09]} 12. Bd3 {[%emt 0:00:19] [#] Weiß steht aktiver.} (12. O-O $14) 12... Bxb4 $1 $15 {[%emt 0:00:24]} 13. Rd1 {[%emt 0:00:16][%cal Od3h7] Droht Bh7+! und aus.} (13. axb4 $2 Nxb4 $19) 13... Bd6 {[%emt 0:00:04]} 14. Ne4 {[%emt 0:00:25]} Nxe4 {[%emt 0:00:03]} 15. Bxe4 {[%emt 0:00:01]} Qa5+ {[%emt 0:00:55]} 16. Nd2 {[%emt 0:00:05][%cal Bf3d2,Bd2c4,Bc4d6][%mdl 32]} Be5 {[%emt 0:00:40]} (16... Bxa3 $2 17. Ra1 $18) 17. O-O {[%emt 0:00:02] Nc4 wäre nun fies.} Bxb2 {[%emt 0:00:03]} 18. Qxb2 {[%emt 0:00:02]} Qe5 {[%emt 0:00:12]} 19. Qb1 {[%emt 0:00:03]} Bd7 {[%emt 0:00:10]} 20. Nc4 {[%emt 0:00:02] Verhindert Na5} Qc7 {[%emt 0:00:01]} 21. Nd6 {[%emt 0:00:27]} Rab8 {[%emt 0:00:07]} 22. Rd2 {[%emt 0:00:06]} (22. Qc2 $11) 22... Ne5 {[%emt 0:00:04]} (22... Ne7 $17 {[%cal Oe7d5]} 23. Rc1 Bc6 24. Bxc6 Nxc6) 23. Qb2 $11 {[%emt 0:00:43]} Ng4 {[%emt 0:00:07]} 24. Rc1 {[%emt 0:00:16]} (24. h3 $5 Nf6 $8 25. Rc1 $11) 24... Bc6 {[%emt 0:00:01]} 25. h3 {[%emt 0:00:03]} Nf6 {[%emt 0:00:03]} 26. Bxc6 {[%emt 0:00:02]} bxc6 {[%emt 0:00:01]} 27. Qc3 {[%emt 0:00:02]} Rfd8 {[%emt 0:00:05]} 28. Qxc6 {[%emt 0:00:03]} Qxc6 {[%emt 0:00:01]} 29. Rxc6 {[%emt 0:00:01]} a5 {[%emt 0:00:05]} 30. Rdc2 {[%emt 0:00:06]} g5 {[%emt 0:00:04]} 31. R2c5 {[%emt 0:00:08][%cal Og2g4]} Rb1+ {[%emt 0:00:02]} 32. Kh2 {[%emt 0:00:01][%cal Oc6c8]} Rb2 {[%emt 0:00:01]} (32... Rd1 $11 33. Nf5 Ne4 34. Nxh6+ Kg7 35. Nxf7 Kxf7) 33. f3 {[%emt 0:00:06]} (33. Rxa5 Rxf2 34. Ra7 Nd5 $11) (33. Rc8 $1 $14 Rb8 34. Rxb8 Rxb8 35. Rc7 (35. Rxa5 Rb6 $16)) 33... Nd5 {[%emt 0:00:02]} 34. Nc4 {[%emt 0:00:06]} Rc2 {[%emt 0:00:03]} 35. Kg3 $2 {[%emt 0:00:06]} (35. Rxa5 $2 Nxe3 36. Rd6 Rxg2+ (36... Nxc4 37. Rxd8+ Kg7 38. Rc5 $16) 37. Kh1 Rxd6 (37... Nxc4 $2 38. Rxd8+ Kh7 39. Kxg2 $18) 38. Nxd6 Rg3 $19) (35. Nxa5 $11 Rxc5 36. Rxc5) 35... Kg7 {[%emt 0:00:03]} (35... Ne7 $19 36. Ra6 Rd1) 36. a4 $2 {[%emt 0:00:00] [#]} (36. Nxa5 $17 {kämpft weiter.} Ra2 (36... Rxc5 37. Rxc5 Nxe3 38. Nc4 $11) 37. Rc2 Rxa3 38. Nc4) 36... Rb8 {[%emt 0:00:00]} (36... Ne7 $1 $19 {[%cal Re7c6]} 37. Nxa5 Ra2 (37... Nxc6 $2 38. Nxc6 Rxc5 39. Nxd8 $19)) 37. Rb5 {[%emt 0:00:05]} Rd8 {[%emt 0:00:03]} ({Günstiger ist} 37... Rxb5 $19 38. axb5 Ne7) 38. Nxa5 $2 {[%emt 0:00:01] [#]} (38. Rxa5 $2 {verliert.} Nxe3 39. Nxe3 Rxc6 $19) (38. Rbc5 $1 $11 {und Weiss ist OK.}) 38... Ra2 {[%emt 0:00:02]} ({Besser ist} 38... Nc3 $1 $19 {( -> ...Rdd2)} 39. h4 Rdd2 40. hxg5 Rxg2+ 41. Kf4 h5) 39. Nc4 {[%emt 0:00:03] Verhindert Rdd2.} Nc3 {[%emt 0:00:01]} (39... Ne7 $11 40. Rcb6 Rxa4) 40. Rb7 $16 {[%emt 0:00:03]} Ne2+ $2 {[%emt 0:00:04][%mdl 8192]} (40... Kg6 $16) 41. Kh2 $18 {[%emt 0:00:01]} Rc2 $2 {[%emt 0:00:03]} (41... Kf6 42. Nd6 Rf8) 42. Ne5 {[%emt 0:00:02]} Rxc6 {[%emt 0:00:00]} 43. Nxc6 {[%emt 0:00:01]} Rd5 {[%emt 0:00:03]} 44. a5 {[%emt 0:00:02][%cal Ba4a5,Ba5a6,Ba6a7][%mdl 32]} Nc1 $2 {[%emt 0:00:03]} (44... Rc5) 45. a6 {[%emt 0:00:00] Droht stark a7. Weiß steht klar auf Gewinn.} Rd2 {[%emt 0:00:02]} 46. a7 {[%emt 0:00:02]} Ra2 {[%emt 0:00:01]} 47. Rb8 {[%emt 0:00:00] Gewichteter Fehlerwert: Weiß=0.43/Schwarz=0.47.  Verlustzug:     	Weiß=3     	Schwarz=1     Gewinn verpasst:   	---       	Schwarz=1     Fehler:       	Weiß=3     	Schwarz=8     Ungenau:       	Weiß=2     	---        OK:         	Weiß=14    	Schwarz=9     Bester:       	Weiß=3     	Schwarz=2     Brilliant:      	---       	Schwarz=1} 1-0

[Event "American Cup Blitz 2024"]
[Site "Saint Louis"]
[Date "2024.03.21"]
[Round "7.8"]
[White "Robson, Ray"]
[Black "Gledura, Benjamin"]
[Result "1/2-1/2"]
[ECO "E43"]
[WhiteElo "2696"]
[BlackElo "2616"]
[Annotator "TA"]
[PlyCount "144"]
[EventDate "2024.03.21"]
[EventType "swiss"]
[EventCountry "USA"]
[SourceTitle "playchess.com"]
[Source "ChessBase"]
[SourceQuality "1"]
[TimeControl "180+2"]

{[%evp 57,143,87,91,87,83,84,94,93,95,89,91,87,145,134,147,0,108,109,160,160,168,108,154,129,168,18,26,29,20,-8,-8,-6,55,59,55,58,58,79,210,185,157,18,11,0,0,0,30,30,78,72,56,46,45,46,49,48,48,48,42,37,59,57,57,7,7,7,8,0,0,0,0,0,-44,0,0,0,0,0,0,0,0,0,0,0,0,0,0,0]} 1. d4 {[%emt 0:00:01]} Nf6 {[%emt 0:00:05]} 2. c4 {[%emt 0:00:00]} e6 {[%emt 0:00:01]} 3. Nc3 {[%emt 0:00:01]} Bb4 {[%emt 0:00:01]} 4. e3 {[%emt 0:00:01]} b6 {[%emt 0:00:04]} 5. Bd3 {[%emt 0:00:06]} Bb7 {[%emt 0:00:02]} 6. Nge2 {[%emt 0:00:05]} Bxg2 {[%emt 0:00:10]} 7. Rg1 {[%emt 0:00:02]} Bf3 {[%emt 0:00:02] E43: Nimzo-Indian: Rubinstein: 4...b6.} 8. Qc2 {[%emt 0:00:21]} g6 {[%emt 0:00:27] is the legacy move (8...Nc6).} 9. e4 {[%emt 0:00:09]} c5 $146 {[%emt 0:00:25]} ({Predecessor:} 9... Nc6 10. Be3 Ng4 11. O-O-O Nxe3 12. fxe3 Bxc3 13. Qxc3 d6 14. Rdf1 Bxe2 15. Bxe2 e5 {1-0 Garriga Cazorla,P (2448)-Blanco Diez,D (2279) Titled Tuesday intern op 29th Aug Early blitz 2023 (7)}) 10. e5 {[%emt 0:00:29]} Nh5 {[%emt 0:00:39]} 11. Bg5 {[%emt 0:00:09]} Qc8 {[%emt 0:00:18]} 12. O-O-O {[%emt 0:00:06]} Bxc3 {[%emt 0:00:06]} 13. Nxc3 {[%emt 0:00:02]} cxd4 {[%emt 0:00:28]} 14. Nb5 {[%emt 0:00:02]} O-O {[%emt 0:00:03]} 15. Rde1 {[%emt 0:00:52]} Nc6 {[%emt 0:00:09]} 16. Qd2 {[%emt 0:00:03]} f5 {[%emt 0:00:22]} 17. exf6 {[%emt 0:00:06]} Nxf6 {[%emt 0:00:02]} 18. Bh6 {[%emt 0:00:03]} Bh5 {[%emt 0:00:02]} 19. Bxf8 {[%emt 0:00:34]} Qxf8 {[%emt 0:00:01]} 20. f4 {[%emt 0:00:07]} Kh8 {[%emt 0:00:06]} 21. Kb1 {[%emt 0:00:14]} a6 {[%emt 0:00:02]} 22. Na3 {[%emt 0:00:01]} Rc8 {[%emt 0:00:04]} 23. Nc2 {[%emt 0:00:01]} Qd6 {[%emt 0:00:02]} 24. Rg5 {[%emt 0:00:03]} Ne7 {[%emt 0:00:01]} 25. Rge5 {[%emt 0:00:03]} Bf3 {[%emt 0:00:03]} 26. a3 {[%emt 0:00:05]} a5 {[%emt 0:00:02]} 27. Qf2 {[%emt 0:00:03]} Bc6 {[%emt 0:00:02]} 28. Qxd4 {[%emt 0:00:03]} Qxd4 {[%emt 0:00:01]} 29. Nxd4 {[%emt 0:00:01]} Kg7 {[%emt 0:00:03]} 30. b4 {[%emt 0:00:04]} axb4 {[%emt 0:00:01]} 31. axb4 {[%emt 0:00:01]} Kf7 {[%emt 0:00:01]} 32. Kb2 {[%emt 0:00:01]} Nf5 {[%emt 0:00:02]} 33. Nxc6 {[%emt 0:00:05]} Rxc6 {[%emt 0:00:02]} 34. Ra1 {[%emt 0:00:02]} Rd6 {[%emt 0:00:01]} (34... Nh5 $142) 35. Kc3 $1 $16 {[%emt 0:00:01]} Rc6 {[%emt 0:00:03]} 36. Kb2 {[%emt 0:00:02]} (36. Ra7 $16) 36... Ke7 {[%emt 0:00:01]} (36... Rd6 $1 $11 37. Kc3 Nh5) 37. Ra6 $16 {[%emt 0:00:02]} Nd6 {[%emt 0:00:03]} (37... Ng4 $142) 38. Kb3 $1 $16 {[%emt 0:00:02]} Nc8 {[%emt 0:00:03]} 39. Bf1 {[%emt 0:00:03]} (39. c5 $18) 39... Rc7 {[%emt 0:00:01]} (39... Nh5 $142) 40. h3 {[%emt 0:00:02]} Nh5 {[%emt 0:00:01]} 41. Re4 {[%emt 0:00:02]} ({White has to play} 41. c5 $1 $18 {[%cal Rc5b6]}) 41... Ng3 $1 $11 {[%emt 0:00:01]} 42. Re1 {[%emt 0:00:00]} Nh5 {[%emt 0:00:02]} 43. c5 {[%emt 0:00:04]} bxc5 {[%emt 0:00:01]} 44. Rc1 {[%emt 0:00:03]} Nxf4 {[%emt 0:00:03]} (44... d6 $11) 45. Rxc5 $14 {[%emt 0:00:02]} Rxc5 {[%emt 0:00:02]} 46. bxc5 {[%emt 0:00:00]} Kd8 {[%emt 0:00:02]} 47. Ra8 {[%emt 0:00:02]} Kc7 {[%emt 0:00:01] [#]} (47... Nd5 $16) 48. Ba6 $1 $18 {[%emt 0:00:01]} Ne7 {[%emt 0:00:02] [#]} 49. Re8 {[%emt 0:00:02]} (49. Ra7+ $1 $16 Kd8 (49... Kc6 50. Kc4 d5+ 51. Kb4) 50. Bb5) 49... Nfd5 $11 {[%emt 0:00:01]} 50. h4 {[%emt 0:00:04]} d6 {[%emt 0:00:01]} 51. Kc4 {[%emt 0:00:02]} dxc5 {[%emt 0:00:01]} 52. Kxc5 {[%emt 0:00:00]} h5 {[%emt 0:00:03]} (52... h6 $11) 53. Bd3 $16 {[%emt 0:00:03]} Kd7 {[%emt 0:00:02]} 54. Bb5+ {[%emt 0:00:01]} Kc7 {[%emt 0:00:00]} 55. Ba4 {[%emt 0:00:02]} Nf5 $1 {[%emt 0:00:04]} 56. Rxe6 {[%emt 0:00:02]} Nf4 $1 {[%emt 0:00:02]} 57. Rf6 {[%emt 0:00:04]} Kd8 {[%emt 0:00:02]} 58. Rf7 {[%emt 0:00:03]} Ne6+ {[%emt 0:00:02]} 59. Kd5 {[%emt 0:00:01]} Nf4+ {[%emt 0:00:02]} 60. Ke4 {[%emt 0:00:03]} (60. Ke5 $14 Nd3+ 61. Kf6) 60... Nd6+ $11 {[%emt 0:00:01]} 61. Kxf4 {[%emt 0:00:01]} Nxf7 {[%emt 0:00:01]} 62. Bb3 {[%emt 0:00:02]} Ke7 {[%emt 0:00:01]} 63. Bxf7 {[%emt 0:00:03]} Kxf7 {[%emt 0:00:01]} 64. Kg5 {[%emt 0:00:01]} Kg7 {[%emt 0:00:01]} 65. Kf4 {[%emt 0:00:00]} Kf6 {[%emt 0:00:01]} 66. Ke4 {[%emt 0:00:01]} g5 {[%emt 0:00:02]} (66... Ke6 $5) 67. hxg5+ {[%emt 0:00:01]} Kxg5 {[%emt 0:00:00]} 68. Kf3 {[%emt 0:00:01]} h4 {[%emt 0:00:02]} 69. Kg2 {[%emt 0:00:00]} h3+ {[%emt 0:00:01]} 70. Kh1 {[%emt 0:00:01]} h2 {[%emt 0:00:01]} 71. Kg2 {[%emt 0:00:00]} Kg4 {[%emt 0:00:01]} 72. Kh1 {[%emt 0:00:01]} Kh3 {[%emt 0:00:01]} 1/2-1/2

[Event "American Cup Blitz 2024"]
[Site "Saint Louis"]
[Date "2024.03.21"]
[Round "7.9"]
[White "Bok, Benjamin"]
[Black "Hong, Andrew"]
[Result "1/2-1/2"]
[ECO "A10"]
[WhiteElo "2620"]
[BlackElo "2542"]
[Annotator "TA"]
[PlyCount "87"]
[EventDate "2024.03.21"]
[EventType "swiss"]
[EventCountry "USA"]
[SourceTitle "playchess.com"]
[Source "ChessBase"]
[SourceQuality "1"]
[TimeControl "180+2"]

{[%evp 17,87,16,43,0,12,25,27,4,11,0,8,0,20,0,0,0,0,-37,43,-14,38,0,0,0,16,14,6,16,130,87,75,28,38,22,83,80,86,72,83,87,332,179,174,124,152,0,0,0,0,0,0,0,0,0,0,0,27,0,0,0,0,0,0,0,0,0,0,0,0,0,0,0]} 1. c4 {[%emt 0:00:01]} d6 {[%emt 0:00:02]} 2. g3 {[%emt 0:00:05]} Bd7 {[%emt 0:00:03]} 3. Bg2 {[%emt 0:00:02]} Qc8 {[%emt 0:00:01]} 4. Nc3 {[%emt 0:00:06]} g6 {[%emt 0:00:01]} 5. d4 {[%emt 0:00:06]} Bg7 {[%emt 0:00:01]} 6. h4 {[%emt 0:00:15] A10: English Opening: Unusual Replies for Black.} Nc6 {[%emt 0:00:08]} 7. Nf3 {[%emt 0:00:04]} Nf6 {[%emt 0:00:07]} 8. O-O $146 {[%emt 0:00:03]} ({Predecessor:} 8. Bg5 h6 9. Bf4 Ng4 10. Qd2 a5 11. e4 Nxd4 12. Nxd4 e5 13. Ndb5 exf4 14. gxf4 {0-1 Diaz Perez,M (2433)-Moroni,L (2574) Titled Tuesday intern op 23rd Aug Late blitz 2022 (2)}) 8... O-O {[%emt 0:00:02]} 9. b3 {[%emt 0:00:06]} e5 {[%emt 0:00:03]} 10. dxe5 {[%emt 0:00:11]} Nxe5 {[%emt 0:00:06]} 11. Bb2 {[%emt 0:00:13]} Bh3 {[%emt 0:00:04]} 12. Nxe5 {[%emt 0:00:10]} dxe5 {[%emt 0:00:01]} 13. Qd3 {[%emt 0:00:25]} Re8 {[%emt 0:00:19]} 14. Ne4 {[%emt 0:00:44]} Bf5 {[%emt 0:00:25]} 15. Rfd1 {[%emt 0:00:04]} Bxe4 {[%emt 0:00:24]} 16. Bxe4 {[%emt 0:00:01]} c6 {[%emt 0:00:01]} 17. Bg2 {[%emt 0:00:18]} Qe6 {[%emt 0:00:05]} (17... e4 $15 18. Qd6 Qf5) 18. Qe3 {[%emt 0:00:09]} (18. Qc2 $14) 18... Ng4 {[%emt 0:00:07]} ({Black should play} 18... e4 $11 19. Bxf6 Bxf6) 19. Qd2 {[%emt 0:00:11]} e4 {[%emt 0:00:01]} 20. e3 {[%emt 0:00:07]} Qf5 {[%emt 0:00:30]} 21. Bxg7 {[%emt 0:00:02]} Kxg7 {[%emt 0:00:01]} 22. Bh3 {[%emt 0:00:04]} Re6 {[%emt 0:00:05]} (22... Rad8 $11 23. Bxg4 Qxg4 24. Qc3+ Kg8) 23. Qe2 {[%emt 0:00:03]} h5 {[%emt 0:00:03]} 24. Rd4 {[%emt 0:00:04]} (24. Rd7 $16) 24... Rae8 $11 {[%emt 0:00:03]} 25. Rad1 {[%emt 0:00:02]} R8e7 {[%emt 0:00:01]} (25... g5 $11 {keeps the balance.}) 26. Rd8 $16 {[%emt 0:00:05]} Rf6 {[%emt 0:00:22]} 27. Bxg4 {[%emt 0:00:07]} hxg4 {[%emt 0:00:01]} 28. Qb2 {[%emt 0:00:04]} Re5 $2 {[%emt 0:00:12]} (28... Qe5 $16 29. Qxe5 Rxe5) 29. R1d6 {[%emt 0:00:03]} (29. Ra8 $142) 29... Rxd6 $18 {[%emt 0:00:12]} 30. Rxd6 {[%emt 0:00:00]} Kh7 {[%emt 0:00:02] [#]} 31. Rd7 $2 {[%emt 0:00:03]} (31. Rd8 $3 $16 {[%mdl 512]}) 31... Qxd7 $11 {[%emt 0:00:06]} 32. Qxe5 {[%emt 0:00:00]} Qd1+ {[%emt 0:00:01]} 33. Kg2 {[%emt 0:00:05]} Qf3+ {[%emt 0:00:02]} 34. Kg1 {[%emt 0:00:01]} Qd1+ {[%emt 0:00:04]} 35. Kh2 {[%emt 0:00:03]} Qe2 {[%emt 0:00:15]} 36. Kg2 {[%emt 0:00:03]} (36. Qxe4 $2 {perishes.} Qxf2+ 37. Qg2 Qxe3 $19) 36... Qxa2 {[%emt 0:00:06]} 37. Qf6 {[%emt 0:00:01]} Kg8 {[%emt 0:00:02]} 38. Qd8+ {[%emt 0:00:02]} Kg7 {[%emt 0:00:01]} 39. Qd4+ {[%emt 0:00:00]} Kg8 {[%emt 0:00:02]} 40. Qd8+ {[%emt 0:00:02]} Kg7 {[%emt 0:00:02]} 41. Qd4+ {[%emt 0:00:01]} Kg8 {[%emt 0:00:01]} 42. Qd8+ {[%emt 0:00:01]} Kg7 {[%emt 0:00:02]} 43. Qd4+ {[%emt 0:00:01]} Kg8 {[%emt 0:00:01]} 44. Qd8+ {[%emt 0:00:01]} 1/2-1/2

[Event "American Cup Blitz 2024"]
[Site "Saint Louis"]
[Date "2024.03.21"]
[Round "7.10"]
[White "Sargsyan, Anna M."]
[Black "Rosen, Eric"]
[Result "1/2-1/2"]
[ECO "B30"]
[WhiteElo "2377"]
[BlackElo "2361"]
[Annotator "TA"]
[PlyCount "156"]
[EventDate "2024.03.21"]
[EventType "swiss"]
[EventCountry "USA"]
[SourceTitle "playchess.com"]
[Source "ChessBase"]
[SourceQuality "1"]
[TimeControl "180+2"]

{[%evp 11,156,4,30,-43,-48,-46,-25,-37,-36,-57,-48,-59,-53,-63,-41,-66,-50,-100,-101,-118,-48,-93,-50,-57,-32,-45,-25,-35,-39,-37,-13,-24,-11,-167,-195,-195,-190,-179,-163,-165,-24,-44,0,0,0,0,0,-12,-10,-126,-118,-191,-185,-188,-167,-177,-191,-261,-263,-245,-180,-164,-170,-287,0,0,0,0,0,0,0,0,0,0,0,0,0,-20,0,-8,-8,-8,-8,-8,-8,-40,-8,-20,0,0,0,0,0,0,8,8,9,9,31,0,0,0,0,0,0,0,0,0,0,0,0,0,0,0,8,0,0,0,0,0,0,0,0,0,0,0,0,0,0,0,0,0,0,0,0,0,0,0,0,0,0,0,0,0,0,0,0]} 1. e4 {[%emt 0:00:02]} c5 {[%emt 0:00:00]} 2. Nf3 {[%emt 0:00:01]} Nc6 {[%emt 0:00:01]} 3. Bb5 {[%emt 0:00:03]} e6 {[%emt 0:00:01]} 4. O-O {[%emt 0:00:08]} Nge7 {[%emt 0:00:00]} 5. Re1 {[%emt 0:00:10]} a6 {[%emt 0:00:01]} 6. Bf1 {[%emt 0:00:02]} d5 {[%emt 0:00:03][%cal Bd7d5,Bd5d4][%mdl 32]} 7. Nc3 {[%emt 0:00:06]} (7. exd5 $11 Nxd5 8. d4) 7... d4 $15 {[%emt 0:00:18]} 8. Ne2 {[%emt 0:00:01]} g6 {[%emt 0:00:01]} 9. d3 {[%emt 0:00:03] Black has an edge.} Bg7 {[%emt 0:00:00]} 10. Ng3 {[%emt 0:00:05]} e5 {[%emt 0:00:12]} 11. h3 {[%emt 0:00:02]} O-O {[%emt 0:00:02]} 12. Bd2 {[%emt 0:00:01]} h6 {[%emt 0:00:01]} 13. Nh2 {[%emt 0:00:04]} Kh7 {[%emt 0:00:11]} 14. f4 {[%emt 0:00:03]} (14. a3 $15) 14... exf4 {[%emt 0:00:22]} 15. Bxf4 {[%emt 0:00:02]} Be6 {[%emt 0:00:01]} (15... f5 $17 {...fxe4 is the strong threat.} 16. exf5 Bxf5 (16... Nxf5 17. Nxf5 Rxf5 18. Bg3 $15)) 16. a3 {[%emt 0:00:02]} b5 {[%emt 0:00:09]} 17. Be2 {[%emt 0:00:03]} c4 {[%emt 0:00:08]} 18. Bg4 {[%emt 0:00:03]} Qd7 {[%emt 0:00:03]} 19. Rf1 {[%emt 0:00:05]} Ne5 {[%emt 0:00:10]} 20. Bxe6 {[%emt 0:00:17]} Qxe6 {[%emt 0:00:01]} 21. Nf3 {[%emt 0:00:02]} N7c6 {[%emt 0:00:09]} 22. Qd2 $2 {[%emt 0:00:13] [#]} (22. Nxe5 $11 {and White stays safe.} Nxe5 23. Ne2) 22... Nxf3+ $1 $19 {[%emt 0:00:13]} 23. Rxf3 {[%emt 0:00:02] [#]} g5 $1 {[%emt 0:00:11]} 24. Bxg5 {[%emt 0:00:02]} hxg5 {[%emt 0:00:01]} 25. Qxg5 {[%emt 0:00:04]} Ne5 {[%emt 0:00:16]} ({Better is} 25... Qh6 $19 26. Qf5+ Qg6) 26. Rf5 $11 {[%emt 0:00:18]} Rae8 {[%emt 0:00:23]} 27. Qh4+ {[%emt 0:00:10]} Kg8 {[%emt 0:00:21]} 28. Nh5 {[%emt 0:00:05]} Ng6 {[%emt 0:00:06]} 29. Qg5 {[%emt 0:00:08]} Qe7 {[%emt 0:00:04]} 30. Qg4 {[%emt 0:00:12]} (30. Rf6 $1 $11) 30... Qh4 $17 {[%emt 0:00:04]} 31. Qf3 {[%emt 0:00:11]} (31. Qe2 $17) 31... Re5 {[%emt 0:00:00]} 32. Rf1 {[%emt 0:00:12]} cxd3 {[%emt 0:00:17]} 33. cxd3 {[%emt 0:00:00]} Rxf5 {[%emt 0:00:01]} 34. exf5 {[%emt 0:00:05]} (34. Qxf5 $142 Be5 35. Rf2) 34... Ne5 $19 {[%emt 0:00:02]} 35. Qe2 {[%emt 0:00:01]} Re8 {[%emt 0:00:06] Hoping for ...Bh6.} 36. Rf4 {[%emt 0:00:12]} Qg5 {[%emt 0:00:05]} 37. f6 {[%emt 0:00:01]} (37. b4 {is a better defense.}) 37... Bh6 $2 {[%emt 0:00:08]} (37... Bf8 $19 {Threatens to win with ...Re6.} 38. Re4 Qf5) 38. Rg4 $1 $11 {[%emt 0:00:16]} Nxg4 {[%emt 0:00:01]} 39. Qxe8+ {[%emt 0:00:02]} Bf8 40. hxg4 {[%emt 0:00:02]} Qxg4 {[%emt 0:00:03][%mdl 4096] Endgame. KQB-KQN} 41. Qe5 {[%emt 0:00:02]} Bh6 {[%emt 0:00:04] Inhibits Nf4.} 42. Qe8+ {[%emt 0:00:25]} Bf8 {[%emt 0:00:01]} 43. Qe5 {[%emt 0:00:07]} Bh6 {[%emt 0:00:00] Against Nf4} 44. Qg3 {[%emt 0:00:01]} Be3+ {[%emt 0:00:05]} 45. Kf1 $132 {[%emt 0:00:01][%mdl 2048] White is fighting back} Qxg3 {[%emt 0:00:01]} 46. Nxg3 {[%emt 0:00:01] KB-KN} Bc1 {[%emt 0:00:02]} 47. b3 {[%emt 0:00:04] Strongly threatening a4.} Bxa3 {[%emt 0:00:01]} 48. Nf5 {[%emt 0:00:01]} Bb2 {[%emt 0:00:02]} 49. Ke2 {[%emt 0:00:08]} a5 {[%emt 0:00:01]} 50. Nd6 {[%emt 0:00:06]} a4 {[%emt 0:00:02]} 51. bxa4 {[%emt 0:00:01]} bxa4 {[%emt 0:00:00] White must now prevent ...a3.} 52. Kd2 {[%emt 0:00:02]} a3 {[%emt 0:00:06]} 53. Kc2 {[%emt 0:00:01]} Bc3 {[%emt 0:00:02]} 54. Kb3 {[%emt 0:00:01]} Bb2 {[%emt 0:00:00]} 55. g4 {[%emt 0:00:01]} Bc1 {[%emt 0:00:02] The position is equal.} 56. Ka2 {[%emt 0:00:03]} Bb2 {[%emt 0:00:04]} 57. Kb3 {[%emt 0:00:01]} Bc1 {[%emt 0:00:01]} 58. Nf5 {[%emt 0:00:02]} Bb2 {[%emt 0:00:02]} 59. Nd6 {[%emt 0:00:05]} Kf8 {[%emt 0:00:01]} 60. Ka2 {[%emt 0:00:02]} Kg8 {[%emt 0:00:03]} 61. Kb3 {[%emt 0:00:02]} Bc1 {[%emt 0:00:02]} 62. Ka2 {[%emt 0:00:00]} Bg5 {[%emt 0:00:04]} 63. Ne4 {[%emt 0:00:03]} (63. Kxa3 {simplifies} Bxf6 64. Kb3 Kg7 65. Kc4) 63... Bc1 {[%emt 0:00:01]} 64. Nd6 {[%emt 0:00:02]} Bb2 {[%emt 0:00:01]} 65. Kb3 {[%emt 0:00:03]} Kh7 {[%emt 0:00:01]} 66. Nxf7 {[%emt 0:00:01]} Kg6 {[%emt 0:00:01][%csl LRf6,LRf7]} 67. Ne5+ {[%emt 0:00:03]} Kxf6 {[%emt 0:00:01]} 68. Nc4 {[%emt 0:00:01][%csl LRa3,LRb2]} Kg5 {[%emt 0:00:05]} 69. Nxa3 {[%emt 0:00:04]} Bxa3 {[%emt 0:00:05]} 70. Kxa3 {[%emt 0:00:01] Kb4 would kill now.} Kxg4 {[%emt 0:00:00] ( -> ...Kf3). KP-KP} 71. Kb4 {[%emt 0:00:01]} Kf4 {[%emt 0:00:03]} 72. Kc5 {[%emt 0:00:02]} Ke5 $1 {[%emt 0:00:01]} 73. Kc4 {[%emt 0:00:01]} Ke6 {[%emt 0:00:00]} 74. Kxd4 {[%emt 0:00:02] White threatens Kc5 and mate.} Kd6 {[%emt 0:00:01]} 75. Ke4 {[%emt 0:00:01] Intending Kd4 and mate.} Ke6 {[%emt 0:00:00]} 76. d4 {[%emt 0:00:01]} Kd6 {[%emt 0:00:01]} 77. d5 {[%emt 0:00:01]} Kd7 {[%emt 0:00:01]} 78. d6 {[%emt 0:00:01]} Kxd6 {[%emt 0:00:01] White happily takes the draw.   Weighted Error Value: White=0.28 (precise) /Black=0.27 (precise) .  Missed win:     	---       	Black=1      Mistake:       	White=6     	Black=2      Inaccurate:     	White=3     	Black=3      OK:         	White=25    	Black=23     Best:        	White=6     	Black=14     Strong:       	White=1     	Black=1} 1/2-1/2